[Event "*** Qualifier 1: Titled Tuesday 3|2 Blitz"]
[Site "Chess.com"]
[Date "2017.04.04"]
[Round "4"]
[White "pKiLz5Rn9b"]
[Black "oggy1984"]
[Result "1/2-1/2"]
[WhiteElo "2595"]
[BlackElo "2306"]
[TimeControl "180+2"]
[EndTime "14:03:40 PDT"]
[Termination "Game drawn - insufficient material"]

1. d4 {[%clk 0:03:02]} 1... Nf6 {[%clk 0:03:00.3]} 2. Nf3 {[%clk 0:03:03.6]}
2... e6 {[%clk 0:03:01.1]} 3. Nbd2 {[%clk 0:03:04.6]} 3... d5 {[%clk 0:03:03]}
4. e3 {[%clk 0:03:06]} 4... c5 {[%clk 0:03:03.8]} 5. c3 {[%clk 0:03:07.5]} 5...
Nc6 {[%clk 0:03:04]} 6. Bd3 {[%clk 0:03:09]} 6... Be7 {[%clk 0:03:04.5]} 7. O-O
{[%clk 0:03:10.3]} 7... O-O {[%clk 0:03:04.6]} 8. dxc5 {[%clk 0:03:11.9]} 8...
Bxc5 {[%clk 0:03:05]} 9. b4 {[%clk 0:03:13.5]} 9... Be7 {[%clk 0:03:03.3]} 10.
Bb2 {[%clk 0:03:15]} 10... b6 {[%clk 0:03:03.8]} 11. Qe2 {[%clk 0:03:16.2]}
11... Bb7 {[%clk 0:03:04.3]} 12. a3 {[%clk 0:03:17.8]} 12... Rc8 {[%clk
0:03:04]} 13. Rfd1 {[%clk 0:03:18.5]} 13... Qc7 {[%clk 0:03:02.5]} 14. Rac1
{[%clk 0:03:19.6]} 14... Ne5 {[%clk 0:03:03]} 15. Nxe5 {[%clk 0:03:19.6]} 15...
Qxe5 {[%clk 0:03:02.9]} 16. Nf3 {[%clk 0:03:21.1]} 16... Qh5 {[%clk 0:03:03.5]}
17. h3 {[%clk 0:03:20.5]} 17... Ne4 {[%clk 0:03:03.8]} 18. c4 {[%clk 0:03:20.3]}
18... dxc4 {[%clk 0:02:52.2]} 19. Bxc4 {[%clk 0:03:21.3]} 19... Rfd8 {[%clk
0:02:50.6]} 20. Rxd8+ {[%clk 0:03:20.8]} 20... Rxd8 {[%clk 0:02:48.9]} 21. Ba6
{[%clk 0:03:14.9]} 21... Qd5 {[%clk 0:02:21.5]} 22. Bxb7 {[%clk 0:03:14.5]}
22... Qxb7 {[%clk 0:02:21.6]} 23. Qc4 {[%clk 0:03:16]} 23... h6 {[%clk
0:01:49.2]} 24. Nd4 {[%clk 0:03:14.4]} 24... Nd6 {[%clk 0:01:32.8]} 25. Qc7
{[%clk 0:03:06.3]} 25... Rd7 {[%clk 0:01:26.1]} 26. Qxb7 {[%clk 0:03:06.7]}
26... Nxb7 {[%clk 0:01:24.5]} 27. Nc6 {[%clk 0:03:06.3]} 27... Nd6 {[%clk
0:01:15.4]} 28. Rd1 {[%clk 0:03:07.6]} 28... Bf8 {[%clk 0:01:14.5]} 29. Be5
{[%clk 0:03:08.6]} 29... Rc7 {[%clk 0:01:13.5]} 30. b5 {[%clk 0:03:08.1]} 30...
Rd7 {[%clk 0:01:07.2]} 31. a4 {[%clk 0:03:09.6]} 31... f6 {[%clk 0:01:07.5]} 32.
Bxd6 {[%clk 0:03:08.3]} 32... Bxd6 {[%clk 0:01:07.6]} 33. Kf1 {[%clk 0:03:07]}
33... Kf7 {[%clk 0:01:06.3]} 34. Nxa7 {[%clk 0:03:02.8]} 34... Rxa7 {[%clk
0:01:05.1]} 35. Rxd6 {[%clk 0:03:04.3]} 35... Rxa4 {[%clk 0:01:06.1]} 36. Rxb6
{[%clk 0:03:05.8]} 36... Ra1+ {[%clk 0:01:07.1]} 37. Ke2 {[%clk 0:03:07.3]}
37... Rb1 {[%clk 0:01:08.1]} 38. Rb7+ {[%clk 0:03:05.7]} 38... Kg6 {[%clk
0:01:09.1]} 39. g3 {[%clk 0:03:07.2]} 39... Rb2+ {[%clk 0:01:09.5]} 40. Kf3
{[%clk 0:03:08.4]} 40... e5 {[%clk 0:01:10.9]} 41. g4 {[%clk 0:03:08.5]} 41...
e4+ {[%clk 0:01:09.4]} 42. Kg3 {[%clk 0:03:08.5]} 42... Rb4 {[%clk 0:01:06.5]}
43. b6 {[%clk 0:03:09.5]} 43... Rb2 {[%clk 0:01:07.2]} 44. Rb8 {[%clk
0:03:08.6]} 44... h5 {[%clk 0:01:06.4]} 45. Rb7 {[%clk 0:02:59.8]} 45... hxg4
{[%clk 0:01:06.5]} 46. hxg4 {[%clk 0:03:01]} 46... Kh7 {[%clk 0:01:06]} 47. Rb8
{[%clk 0:02:58.1]} 47... Kg6 {[%clk 0:01:06.5]} 48. b7 {[%clk 0:02:50.6]} 48...
Kg5 {[%clk 0:01:05.6]} 49. Kh3 {[%clk 0:02:35.5]} 49... g6 {[%clk 0:01:03.6]}
50. Kg3 {[%clk 0:02:35.4]} 50... Rb4 {[%clk 0:01:01.9]} 51. Kh3 {[%clk
0:02:18.4]} 51... Rb2 {[%clk 0:01:02.1]} 52. Kg3 {[%clk 0:02:16]} 52... Rb4
{[%clk 0:01:02.3]} 53. Re8 {[%clk 0:02:15.3]} 53... Rxb7 {[%clk 0:01:01.5]} 54.
Rxe4 {[%clk 0:02:16.8]} 54... Kh6 {[%clk 0:00:41.3]} 55. Ra4 {[%clk 0:02:16.5]}
55... g5 {[%clk 0:00:36.9]} 56. Ra5 {[%clk 0:02:17.1]} 56... Kg6 {[%clk
0:00:36.7]} 57. Kf3 {[%clk 0:02:18.5]} 57... Rb2 {[%clk 0:00:36.1]} 58. Ra3
{[%clk 0:02:19.7]} 58... Rc2 {[%clk 0:00:36.6]} 59. Rd3 {[%clk 0:02:20.2]} 59...
Rb2 {[%clk 0:00:37.1]} 60. Rd1 {[%clk 0:02:21.7]} 60... Ra2 {[%clk 0:00:38.1]}
61. Re1 {[%clk 0:02:22.8]} 61... Rb2 {[%clk 0:00:39]} 62. Re2 {[%clk 0:02:24.3]}
62... Rb1 {[%clk 0:00:39.6]} 63. Rc2 {[%clk 0:02:25.3]} 63... Rg1 {[%clk
0:00:39.7]} 64. Rc4 {[%clk 0:02:25.6]} 64... Kf7 {[%clk 0:00:39.9]} 65. Ke2
{[%clk 0:02:23.9]} 65... Kg6 {[%clk 0:00:40.5]} 66. f3 {[%clk 0:02:24.8]} 66...
Rg2+ {[%clk 0:00:40.7]} 67. Kd3 {[%clk 0:02:25.8]} 67... Rf2 {[%clk 0:00:41.5]}
68. Ke4 {[%clk 0:02:26.4]} 68... Rf1 {[%clk 0:00:41.6]} 69. Rc3 {[%clk
0:02:24.7]} 69... Rf2 {[%clk 0:00:39.9]} 70. Rc1 {[%clk 0:02:25.3]} 70... Kf7
{[%clk 0:00:38.9]} 71. Rd1 {[%clk 0:02:25.4]} 71... Kg6 {[%clk 0:00:39.7]} 72.
Ra1 {[%clk 0:02:25.3]} 72... Kf7 {[%clk 0:00:40.1]} 73. Ra3 {[%clk 0:02:25.4]}
73... Kg6 {[%clk 0:00:40.6]} 74. Ra4 {[%clk 0:02:25.4]} 74... Rf1 {[%clk
0:00:40.5]} 75. Ra2 {[%clk 0:02:24.9]} 75... Kf7 {[%clk 0:00:41.1]} 76. Rg2
{[%clk 0:02:22.3]} 76... Kg6 {[%clk 0:00:41.6]} 77. Rh2 {[%clk 0:02:23.7]} 77...
Kf7 {[%clk 0:00:41.6]} 78. Rh6 {[%clk 0:02:22.4]} 78... Kg7 {[%clk 0:00:41.9]}
79. Rh3 {[%clk 0:02:23.9]} 79... Kg6 {[%clk 0:00:42.9]} 80. Rg3 {[%clk
0:02:23.7]} 80... Rf2 {[%clk 0:00:42.6]} 81. Rg1 {[%clk 0:02:24.3]} 81... Kf7
{[%clk 0:00:43.3]} 82. Rh1 {[%clk 0:02:24.4]} 82... Kg6 {[%clk 0:00:44.3]} 83.
Rh3 {[%clk 0:02:25.8]} 83... Kf7 {[%clk 0:00:44.6]} 84. Kf5 {[%clk 0:02:25.3]}
84... Kg7 {[%clk 0:00:45.2]} 85. Rg3 {[%clk 0:01:50.8]} 85... Ra2 {[%clk
0:00:42.4]} 86. Rg1 {[%clk 0:01:49.9]} 86... Ra5+ {[%clk 0:00:40.3]} 87. Ke4
{[%clk 0:01:49.4]} 87... Ra4+ {[%clk 0:00:41.1]} 88. Kd3 {[%clk 0:01:50.5]}
88... Ra3+ {[%clk 0:00:42.3]} 89. Ke2 {[%clk 0:01:51.6]} 89... Ra2+ {[%clk
0:00:42.9]} 90. Kf1 {[%clk 0:01:52.8]} 90... Kg6 {[%clk 0:00:41.9]} 91. Rg2
{[%clk 0:01:53]} 91... Ra3 {[%clk 0:00:41.4]} 92. Kf2 {[%clk 0:01:54.1]} 92...
Rb3 {[%clk 0:00:36.8]} 93. Rg1 {[%clk 0:01:55]} 93... Rb2+ {[%clk 0:00:37.6]}
94. Kg3 {[%clk 0:01:55.8]} 94... Re2 {[%clk 0:00:38.1]} 95. e4 {[%clk
0:01:55.1]} 95... Kf7 {[%clk 0:00:38.9]} 96. Ra1 {[%clk 0:01:55.2]} 96... Kg6
{[%clk 0:00:37.3]} 97. Ra6 {[%clk 0:01:55.4]} 97... Kf7 {[%clk 0:00:37.1]} 98.
Ra7+ {[%clk 0:01:56.6]} 98... Kg6 {[%clk 0:00:37.4]} 99. Re7 {[%clk 0:01:57.7]}
99... Kh6 {[%clk 0:00:32.6]} 100. Re6 {[%clk 0:01:46.2]} 100... Kg7 {[%clk
0:00:33]} 101. Rd6 {[%clk 0:01:44.1]} 101... Kf7 {[%clk 0:00:32.8]} 102. Rc6
{[%clk 0:01:44.9]} 102... Ke7 {[%clk 0:00:31.4]} 103. Rc5 {[%clk 0:01:41.8]}
103... Ke6 {[%clk 0:00:31.5]} 104. Rf5 {[%clk 0:01:40.3]} 104... Re3 {[%clk
0:00:18.4]} 105. Kf2 {[%clk 0:01:38.3]} 105... Ra3 {[%clk 0:00:18.8]} 106. e5
{[%clk 0:01:39.1]} 106... fxe5 {[%clk 0:00:15.6]} 107. Rxg5 {[%clk 0:01:40.4]}
107... Ra2+ {[%clk 0:00:12.9]} 108. Kg3 {[%clk 0:01:41.4]} 108... Ra3 {[%clk
0:00:14.4]} 109. Kf2 {[%clk 0:01:16.9]} 109... Ra2+ {[%clk 0:00:14.6]} 110. Kf1
{[%clk 0:01:17.6]} 110... Ra3 {[%clk 0:00:16.5]} 111. Kg2 {[%clk 0:01:14.2]}
111... Ra2+ {[%clk 0:00:16.7]} 112. Kg3 {[%clk 0:01:15.5]} 112... Ra3 {[%clk
0:00:18.2]} 113. Rg8 {[%clk 0:01:16.9]} 113... Kf7 {[%clk 0:00:17.6]} 114. Rg5
{[%clk 0:01:12.3]} 114... e4 {[%clk 0:00:16.3]} 115. Rf5+ {[%clk 0:01:13.5]}
115... Kg6 {[%clk 0:00:17.2]} 116. Rf8 {[%clk 0:01:11.9]} 116... exf3 {[%clk
0:00:17.6]} 117. Rxf3 {[%clk 0:01:11.5]} 117... Ra4 {[%clk 0:00:13.9]} 118. Rb3
{[%clk 0:01:10.6]} 118... Rc4 {[%clk 0:00:13.9]} 119. Kh4 {[%clk 0:01:11.8]}
119... Kh6 {[%clk 0:00:14.8]} 120. Rb6+ {[%clk 0:01:12.7]} 120... Kg7 {[%clk
0:00:15.4]} 121. Rb5 {[%clk 0:01:13.4]} 121... Rc6 {[%clk 0:00:13.7]} 122. Rg5+
{[%clk 0:01:07.6]} 122... Kh7 {[%clk 0:00:14.5]} 123. Rh5+ {[%clk 0:01:06.6]}
123... Kg7 {[%clk 0:00:15.1]} 124. Ra5 {[%clk 0:01:06.1]} 124... Rh6+ {[%clk
0:00:15.3]} 125. Kg3 {[%clk 0:01:07.4]} 125... Rb6 {[%clk 0:00:15.6]} 126. Rc5
{[%clk 0:01:06.8]} 126... Kg6 {[%clk 0:00:16.3]} 127. Kh4 {[%clk 0:01:08.1]}
127... Ra6 {[%clk 0:00:16.7]} 128. Rb5 {[%clk 0:01:09]} 128... Rc6 {[%clk
0:00:16.8]} 129. Rb8 {[%clk 0:01:09.8]} 129... Kh7 {[%clk 0:00:16.9]} 130. Rd8
{[%clk 0:01:02.4]} 130... Rb6 {[%clk 0:00:16.7]} 131. Kh5 {[%clk 0:01:01.5]}
131... Rh6+ {[%clk 0:00:16.5]} 132. Kg5 {[%clk 0:01:02.2]} 132... Rg6+ {[%clk
0:00:17.7]} 133. Kf5 {[%clk 0:01:03.2]} 133... Rb6 {[%clk 0:00:18.9]} 134. Rd7+
{[%clk 0:01:03.5]} 134... Kg8 {[%clk 0:00:19.2]} 135. Kg5 {[%clk 0:01:04.4]}
135... Rc6 {[%clk 0:00:19]} 136. Rd5 {[%clk 0:01:03]} 136... Kg7 {[%clk
0:00:19.4]} 137. Rd7+ {[%clk 0:01:04]} 137... Kg8 {[%clk 0:00:20.2]} 138. Kh5
{[%clk 0:01:05.9]} 138... Rb6 {[%clk 0:00:20.7]} 139. Rc7 {[%clk 0:01:07]}
139... Ra6 {[%clk 0:00:21.3]} 140. Rc5 {[%clk 0:01:04.9]} 140... Kh7 {[%clk
0:00:21.4]} 141. Kg5 {[%clk 0:01:04.5]} 141... Kg7 {[%clk 0:00:22]} 142. Rb5
{[%clk 0:01:02.6]} 142... Rc6 {[%clk 0:00:21.6]} 143. Kf5 {[%clk 0:00:59.8]}
143... Rf6+ {[%clk 0:00:20.8]} 144. Ke4 {[%clk 0:01:00.3]} 144... Rc6 {[%clk
0:00:21.5]} 145. Kf4 {[%clk 0:00:58.9]} 145... Kg6 {[%clk 0:00:21]} 146. Rb4
{[%clk 0:00:58.2]} 146... Ra6 {[%clk 0:00:21]} 147. Rb8 {[%clk 0:00:55.7]}
147... Ra4+ {[%clk 0:00:20.6]} 148. Kg3 {[%clk 0:00:56.4]} 148... Kg5 {[%clk
0:00:21.3]} 149. Rg8+ {[%clk 0:00:55.7]} 149... Kh6 {[%clk 0:00:21.8]} 150. Kh4
{[%clk 0:00:55.4]} 150... Rb4 {[%clk 0:00:22.5]} 151. Rc8 {[%clk 0:00:55.2]}
151... Kg6 {[%clk 0:00:22.2]} 152. Rc6+ {[%clk 0:00:55.7]} 152... Kh7 {[%clk
0:00:22.1]} 153. Kh5 {[%clk 0:00:57.6]} 153... Kg7 {[%clk 0:00:19.7]} 154. g5
{[%clk 0:00:54.3]} 154... Rb7 {[%clk 0:00:20.1]} 155. Ra6 {[%clk 0:00:55.1]}
155... Rc7 {[%clk 0:00:20.5]} 156. Ra5 {[%clk 0:00:55.2]} 156... Rb7 {[%clk
0:00:21.1]} 157. Kg4 {[%clk 0:00:50.3]} 157... Rc7 {[%clk 0:00:21]} 158. Kf5
{[%clk 0:00:51.1]} 158... Rf7+ {[%clk 0:00:21]} 159. Ke5 {[%clk 0:00:51.1]}
159... Rb7 {[%clk 0:00:22.9]} 160. Ra6 {[%clk 0:00:49.8]} 160... Rf7 {[%clk
0:00:23.1]} 161. Rf6 {[%clk 0:00:48.9]} 161... Rb7 {[%clk 0:00:23.4]} 162. Kf5
{[%clk 0:00:49.3]} 162... Rc7 {[%clk 0:00:23.4]} 163. Re6 {[%clk 0:00:48.5]}
163... Rf7+ {[%clk 0:00:23.1]} 164. Kg4 {[%clk 0:00:47.7]} 164... Rb7 {[%clk
0:00:25]} 165. Re5 {[%clk 0:00:48.4]} 165... Rc7 {[%clk 0:00:25.3]} 166. Kh5
{[%clk 0:00:49.4]} 166... Rc6 {[%clk 0:00:25]} 167. Rf5 {[%clk 0:00:49.5]}
167... Rb6 {[%clk 0:00:24.9]} 168. g6 {[%clk 0:00:50]} 168... Rb1 {[%clk
0:00:23.2]} 169. Rf7+ {[%clk 0:00:48.7]} 169... Kg8 {[%clk 0:00:23.9]} 170. Rf4
{[%clk 0:00:49.9]} 170... Rh1+ {[%clk 0:00:22.6]} 171. Kg5 {[%clk 0:00:50.9]}
171... Rg1+ {[%clk 0:00:23]} 172. Kf6 {[%clk 0:00:51.6]} 172... Rb1 {[%clk
0:00:20.8]} 173. Ra4 {[%clk 0:00:50]} 173... Rb6+ {[%clk 0:00:21.1]} 174. Kg5
{[%clk 0:00:50.6]} 174... Rb1 {[%clk 0:00:15.3]} 175. Rh4 {[%clk 0:00:49.9]}
175... Kg7 {[%clk 0:00:15.1]} 176. Rh7+ {[%clk 0:00:50.4]} 176... Kg8 {[%clk
0:00:15.9]} 177. Rh4 {[%clk 0:00:45.1]} 177... Kg7 {[%clk 0:00:15.9]} 178. Rh7+
{[%clk 0:00:40.9]} 178... Kg8 {[%clk 0:00:16.5]} 179. Rh2 {[%clk 0:00:41.3]}
179... Kg7 {[%clk 0:00:16.4]} 180. Rf2 {[%clk 0:00:35.3]} 180... Rb5+ {[%clk
0:00:14.7]} 181. Rf5 {[%clk 0:00:36.2]} 181... Rb1 {[%clk 0:00:15.1]} 182. Rf7+
{[%clk 0:00:33.5]} 182... Kg8 {[%clk 0:00:15.7]} 183. Rf4 {[%clk 0:00:35.4]}
183... Kg7 {[%clk 0:00:15.8]} 184. Rf7+ {[%clk 0:00:30.1]} 184... Kg8 {[%clk
0:00:15.7]} 185. Ra7 {[%clk 0:00:30.8]} 185... Rg1+ {[%clk 0:00:13.9]} 186. Kf5
{[%clk 0:00:31.7]} 186... Rf1+ {[%clk 0:00:14.4]} 187. Ke4 {[%clk 0:00:31.7]}
187... Re1+ {[%clk 0:00:12.8]} 188. Kf3 {[%clk 0:00:31.8]} 188... Rg1 {[%clk
0:00:13.1]} 189. g7 {[%clk 0:00:32.5]} 189... Rxg7 {[%clk 0:00:12.6]} 190. Rxg7+
{[%clk 0:00:34.4]} 190... Kxg7 {[%clk 0:00:14.5]} 1/2-1/2

[Event "*** Qualifier 1: Titled Tuesday 3|2 Blitz"]
[Site "Chess.com"]
[Date "2017.04.04"]
[Round "5"]
[White "DryCounty"]
[Black "dolynachess"]
[Result "1-0"]
[WhiteElo "2467"]
[BlackElo "2296"]
[TimeControl "180+2"]
[EndTime "14:07:53 PDT"]
[Termination "DryCounty won by resignation"]

1. e4 {[%clk 0:03:02]} 1... e6 {[%clk 0:02:53.9]} 2. d4 {[%clk 0:03:02]} 2... d5
{[%clk 0:02:55.5]} 3. exd5 {[%clk 0:03:02.8]} 3... exd5 {[%clk 0:02:56.4]} 4.
Nf3 {[%clk 0:03:04.2]} 4... Bg4 {[%clk 0:02:54.4]} 5. h3 {[%clk 0:03:04.3]} 5...
Bh5 {[%clk 0:02:53.7]} 6. Qe2+ {[%clk 0:03:05]} 6... Qe7 {[%clk 0:02:52.9]} 7.
Be3 {[%clk 0:03:05.6]} 7... Nc6 {[%clk 0:02:50.2]} 8. Nc3 {[%clk 0:03:04.9]}
8... O-O-O {[%clk 0:02:50.8]} 9. g4 {[%clk 0:02:52]} 9... Bg6 {[%clk 0:02:50.5]}
10. O-O-O {[%clk 0:02:53.3]} 10... Nf6 {[%clk 0:02:42.6]} 11. Nh4 {[%clk
0:02:50.3]} 11... Ne4 {[%clk 0:02:40.2]} 12. Nxg6 {[%clk 0:02:50.6]} 12... hxg6
{[%clk 0:02:40.8]} 13. Nxe4 {[%clk 0:02:49.2]} 13... Qxe4 {[%clk 0:02:37.2]} 14.
Rg1 {[%clk 0:02:49.3]} 14... Bd6 {[%clk 0:02:15.2]} 15. Bg2 {[%clk 0:02:49.2]}
15... Qe6 {[%clk 0:02:16.6]} 16. c4 {[%clk 0:02:50]} 16... Ne7 {[%clk
0:01:56.1]} 17. Qf3 {[%clk 0:02:41.1]} 17... Qf6 {[%clk 0:01:40.5]} 18. Qxf6
{[%clk 0:02:29]} 18... gxf6 {[%clk 0:01:40.5]} 19. c5 {[%clk 0:02:29.8]} 1-0

[Event "*** Qualifier 1: Titled Tuesday 3|2 Blitz"]
[Site "Chess.com"]
[Date "2017.04.04"]
[Round "5"]
[White "Keaton87"]
[Black "wonderfultime"]
[Result "0-1"]
[WhiteElo "2495"]
[BlackElo "2670"]
[TimeControl "180+2"]
[EndTime "14:07:55 PDT"]
[Termination "wonderfultime won by resignation"]

1. d4 {[%clk 0:03:01.9]} 1... d5 {[%clk 0:02:59.4]} 2. Bf4 {[%clk 0:03:01.2]}
2... Nf6 {[%clk 0:03:00]} 3. e3 {[%clk 0:03:01.9]} 3... e6 {[%clk 0:03:00.9]} 4.
Nf3 {[%clk 0:03:01.8]} 4... c5 {[%clk 0:03:01.2]} 5. c3 {[%clk 0:03:02.7]} 5...
Nc6 {[%clk 0:03:01.7]} 6. Bd3 {[%clk 0:02:58.9]} 6... Bd6 {[%clk 0:02:59.7]} 7.
Bg3 {[%clk 0:02:59]} 7... O-O {[%clk 0:02:59.8]} 8. Ne5 {[%clk 0:02:59.8]} 8...
Ne7 {[%clk 0:02:57.5]} 9. O-O {[%clk 0:02:54.8]} 9... b6 {[%clk 0:02:58]} 10.
Nd2 {[%clk 0:02:53.8]} 10... Bb7 {[%clk 0:02:59.5]} 11. Qe2 {[%clk 0:02:49.7]}
11... Rc8 {[%clk 0:02:47.4]} 12. Ba6 {[%clk 0:02:49.3]} 12... Bxa6 {[%clk
0:02:40.8]} 13. Qxa6 {[%clk 0:02:51.2]} 13... Qc7 {[%clk 0:02:42.4]} 14. Nef3
{[%clk 0:02:49.3]} 14... Nf5 {[%clk 0:02:41.7]} 15. Bxd6 {[%clk 0:02:48.4]}
15... Nxd6 {[%clk 0:02:43.6]} 16. a4 {[%clk 0:02:42.7]} 16... Rb8 {[%clk
0:02:37.8]} 17. Rfd1 {[%clk 0:02:39.6]} 17... Rfc8 {[%clk 0:02:37.7]} 18. h3
{[%clk 0:02:36.5]} 18... h6 {[%clk 0:02:37.4]} 19. Qe2 {[%clk 0:02:34.9]} 19...
c4 {[%clk 0:02:31.6]} 20. Ne5 {[%clk 0:02:33.2]} 20... b5 {[%clk 0:02:24.7]} 21.
axb5 {[%clk 0:02:30.3]} 21... Rxb5 {[%clk 0:02:26.6]} 22. Ra2 {[%clk 0:02:31.5]}
22... Rcb8 {[%clk 0:02:27.8]} 23. Nf1 {[%clk 0:02:24.9]} 23... R8b7 {[%clk
0:02:25.8]} 24. Rda1 {[%clk 0:02:25.7]} 24... Qb8 {[%clk 0:02:25.9]} 25. Rb1
{[%clk 0:02:22.1]} 25... Nde4 {[%clk 0:02:24.6]} 26. Qc2 {[%clk 0:02:22.8]}
26... Rb3 {[%clk 0:02:20.5]} 27. Nd2 {[%clk 0:02:16.7]} 27... Nxd2 {[%clk
0:02:21.5]} 28. Qxd2 {[%clk 0:02:18]} 28... Ne4 {[%clk 0:02:23.4]} 29. Qe2
{[%clk 0:02:09.2]} 29... Nxc3 {[%clk 0:02:23.7]} 30. bxc3 {[%clk 0:02:09.7]}
30... Rxb1+ {[%clk 0:02:25.1]} 31. Kh2 {[%clk 0:02:11.1]} 31... f6 {[%clk
0:02:26.2]} 0-1

[Event "*** Qualifier 1: Titled Tuesday 3|2 Blitz"]
[Site "Chess.com"]
[Date "2017.04.04"]
[Round "5"]
[White "Ilja_Semjonovs"]
[Black "jeaston1"]
[Result "0-1"]
[WhiteElo "2145"]
[BlackElo "2167"]
[TimeControl "180+2"]
[EndTime "14:07:57 PDT"]
[Termination "jeaston1 won by resignation"]

1. e4 {[%clk 0:03:00]} 1... c5 {[%clk 0:03:00.1]} 2. Nf3 {[%clk 0:02:59.6]} 2...
Nc6 {[%clk 0:03:01.4]} 3. d4 {[%clk 0:03:00.3]} 3... cxd4 {[%clk 0:03:03.3]} 4.
Nxd4 {[%clk 0:03:02.2]} 4... Nf6 {[%clk 0:03:04.3]} 5. Nc3 {[%clk 0:03:03.9]}
5... e5 {[%clk 0:03:05.4]} 6. Ndb5 {[%clk 0:03:05.4]} 6... d6 {[%clk 0:03:06.8]}
7. Bg5 {[%clk 0:03:05.5]} 7... a6 {[%clk 0:03:07.8]} 8. Na3 {[%clk 0:03:05.6]}
8... b5 {[%clk 0:03:08.8]} 9. Nd5 {[%clk 0:03:06.7]} 9... Be7 {[%clk 0:03:10.4]}
10. Bxf6 {[%clk 0:03:08.1]} 10... Bxf6 {[%clk 0:03:12.3]} 11. c3 {[%clk
0:03:09.6]} 11... O-O {[%clk 0:03:13.7]} 12. Nc2 {[%clk 0:03:09.4]} 12... Rb8
{[%clk 0:03:14.7]} 13. Nce3 {[%clk 0:03:06.9]} 13... Bg5 {[%clk 0:03:15.1]} 14.
a4 {[%clk 0:03:07.3]} 14... bxa4 {[%clk 0:03:15.4]} 15. Qxa4 {[%clk 0:03:09.2]}
15... Ne7 {[%clk 0:03:11.8]} 16. Nxe7+ {[%clk 0:02:51.7]} 16... Bxe7 {[%clk
0:02:52.9]} 17. b4 {[%clk 0:02:48.6]} 17... Bb7 {[%clk 0:02:35.6]} 18. Bxa6
{[%clk 0:02:35.3]} 18... Bxe4 {[%clk 0:02:35.4]} 19. O-O {[%clk 0:02:32.5]}
19... Bg5 {[%clk 0:02:34.5]} 20. b5 {[%clk 0:02:26.1]} 20... d5 {[%clk
0:02:25.1]} 21. Rad1 {[%clk 0:02:19.3]} 21... Bxe3 {[%clk 0:02:22]} 22. fxe3
{[%clk 0:02:21.2]} 22... Qg5 {[%clk 0:02:16.2]} 23. Rf2 {[%clk 0:01:48.5]} 23...
Qxe3 {[%clk 0:02:15.3]} 0-1

[Event "*** Qualifier 1: Titled Tuesday 3|2 Blitz"]
[Site "Chess.com"]
[Date "2017.04.04"]
[Round "5"]
[White "donotreadit"]
[Black "Feegus"]
[Result "0-1"]
[WhiteElo "2476"]
[BlackElo "2357"]
[TimeControl "180+2"]
[EndTime "14:08:14 PDT"]
[Termination "Feegus won by checkmate"]

1. d4 {[%clk 0:03:00.6]} 1... Nf6 {[%clk 0:03:00.6]} 2. Bg5 {[%clk 0:03:01.4]}
2... Ne4 {[%clk 0:03:00.8]} 3. Bf4 {[%clk 0:03:02.2]} 3... g6 {[%clk 0:02:59]}
4. f3 {[%clk 0:03:00.1]} 4... Nf6 {[%clk 0:03:00.1]} 5. e4 {[%clk 0:03:01.6]}
5... Bg7 {[%clk 0:02:59]} 6. Nc3 {[%clk 0:03:02.2]} 6... d6 {[%clk 0:02:56.3]}
7. h4 {[%clk 0:03:01.8]} 7... Nh5 {[%clk 0:02:54]} 8. Bh2 {[%clk 0:02:59.3]}
8... e5 {[%clk 0:02:52.7]} 9. dxe5 {[%clk 0:02:30.1]} 9... Qxh4+ {[%clk
0:02:50.9]} 10. Kd2 {[%clk 0:02:30.1]} 10... Bh6+ {[%clk 0:02:48.9]} 11. Ke2
{[%clk 0:02:19.6]} 11... O-O {[%clk 0:02:45.8]} 12. g4 {[%clk 0:02:12.2]} 12...
Nf4+ {[%clk 0:02:43.3]} 13. Bxf4 {[%clk 0:02:07.1]} 13... Qxh1 {[%clk
0:02:44.3]} 14. Bxh6 {[%clk 0:02:06]} 14... Qxh6 {[%clk 0:02:44.6]} 15. Nh3
{[%clk 0:01:55.9]} 15... dxe5 {[%clk 0:02:45.5]} 16. Nd5 {[%clk 0:01:55.3]}
16... Nc6 {[%clk 0:02:43]} 17. Qe1 {[%clk 0:01:48.5]} 17... Nd4+ {[%clk
0:02:39.7]} 18. Kd3 {[%clk 0:01:39]} 18... Nxf3 {[%clk 0:02:32.2]} 19. Qg3
{[%clk 0:01:34.6]} 19... Qd2+ {[%clk 0:02:29.8]} 20. Kc4 {[%clk 0:01:33.8]}
20... Qxc2+ {[%clk 0:02:31]} 21. Kb4 {[%clk 0:01:28.5]} 21... Qxb2+ {[%clk
0:02:29.4]} 22. Ka4 {[%clk 0:01:29.1]} 22... Bd7+ {[%clk 0:02:20.7]} 23. Ka5
{[%clk 0:01:29.5]} 23... Qa3# {[%clk 0:02:15.6]} 0-1

[Event "*** Qualifier 1: Titled Tuesday 3|2 Blitz"]
[Site "Chess.com"]
[Date "2017.04.04"]
[Round "5"]
[White "tigra"]
[Black "Blitzstream"]
[Result "1-0"]
[WhiteElo "2606"]
[BlackElo "2496"]
[TimeControl "180+2"]
[EndTime "14:08:30 PDT"]
[Termination "tigra won by resignation"]

1. e4 {[%clk 0:03:02]} 1... d5 {[%clk 0:03:00.3]} 2. exd5 {[%clk 0:03:02.3]}
2... Qxd5 {[%clk 0:03:02.2]} 3. Nc3 {[%clk 0:03:02.7]} 3... Qa5 {[%clk
0:03:03.2]} 4. d4 {[%clk 0:03:03]} 4... Nf6 {[%clk 0:03:04.3]} 5. Nf3 {[%clk
0:03:03.2]} 5... c6 {[%clk 0:03:05.3]} 6. Bc4 {[%clk 0:03:02.3]} 6... Bf5 {[%clk
0:03:05.6]} 7. Ne5 {[%clk 0:03:02.4]} 7... e6 {[%clk 0:03:06]} 8. g4 {[%clk
0:03:03]} 8... Bg6 {[%clk 0:03:07]} 9. h4 {[%clk 0:03:03.4]} 9... Nbd7 {[%clk
0:03:08.2]} 10. Nxd7 {[%clk 0:02:59.8]} 10... Nxd7 {[%clk 0:03:09.1]} 11. h5
{[%clk 0:03:00.1]} 11... Be4 {[%clk 0:03:10]} 12. f3 {[%clk 0:02:59.3]} 12...
Bd5 {[%clk 0:03:07.9]} 13. Be2 {[%clk 0:02:59]} 13... O-O-O {[%clk 0:02:54.8]}
14. a3 {[%clk 0:02:56.6]} 14... e5 {[%clk 0:02:42.3]} 15. Be3 {[%clk 0:02:55]}
15... exd4 {[%clk 0:02:26.3]} 16. b4 {[%clk 0:02:53.6]} 16... Bxb4 {[%clk
0:02:10.8]} 17. axb4 {[%clk 0:02:53.6]} 17... Qxb4 {[%clk 0:02:12.7]} 18. Qxd4
{[%clk 0:02:53.7]} 18... Qd6 {[%clk 0:02:09.9]} 19. Nxd5 {[%clk 0:02:52.4]}
19... cxd5 {[%clk 0:02:09.8]} 20. Qc3+ {[%clk 0:02:49.4]} 20... Qc7 {[%clk
0:02:08.3]} 21. Qxc7+ {[%clk 0:02:49.1]} 21... Kxc7 {[%clk 0:02:10.2]} 22. Rxa7
{[%clk 0:02:50.1]} 22... Rhe8 {[%clk 0:02:10.8]} 23. Kd2 {[%clk 0:02:50.1]}
23... d4 {[%clk 0:02:05.3]} 24. Bxd4 {[%clk 0:02:46]} 24... Nc5 {[%clk
0:02:05.8]} 25. c3 {[%clk 0:02:42.4]} 25... Nb3+ {[%clk 0:02:06.9]} 26. Kd3
{[%clk 0:02:39.2]} 26... Nc5+ {[%clk 0:02:04.4]} 27. Kc4 {[%clk 0:02:38.3]}
27... Na6 {[%clk 0:01:58.7]} 28. Rb1 {[%clk 0:02:35.4]} 28... Rb8 {[%clk
0:01:57.8]} 29. Bd3 {[%clk 0:02:34.1]} 29... Rec8 {[%clk 0:01:52.7]} 30. Bf5
{[%clk 0:02:30]} 30... Re8 {[%clk 0:01:51.8]} 31. Be4 {[%clk 0:02:29.7]} 1-0